fUSD/lending_fUSD_20260406
["ID","MTS","AMOUNT","RATE_DAILY","PERIOD"]
[419887046,1775467850914,-165.8258,0.00014842,2]
[419887047,1775467850924,-481.613934,0.00014842,2]
[419887048,1775467850934,-313.573788,0.00014842,2]
[419887049,1775467850944,-481.613934,0.00014842,2]
[419887050,1775467850953,-313.573788,0.00014842,2]
[419887051,1775467850963,-439.763631,0.00014842,2]
[419887052,1775467850973,-1184.808907,0.00014842,2]
[419887053,1775467850983,-481.613934,0.00014842,2]
[419887054,1775467850993,-386.291821,0.00014842,2]
[419887055,1775467851003,-313.573788,0.00014842,2]
[419887056,1775467851013,-230.868542,0.00014842,2]
[419887057,1775467851022,-439.763631,0.00014842,2]
[419887058,1775467851031,-3209.548765,0.00014842,2]
[419887059,1775467851041,-1184.808907,0.00014842,2]
[419887060,1775467851051,-176.400625,0.00014842,2]
[419887061,1775467851061,-386.291821,0.00014842,2]
[419887062,1775467851070,-439.763631,0.00014842,2]
[419887063,1775467851080,-230.868542,0.00014842,2]
[419887064,1775467851090,-3209.548765,0.00014842,2]
[419887065,1775467851101,-1184.808907,0.00014842,2]
[419887066,1775467851110,-176.400625,0.00014842,2]
[419887067,1775467851120,-386.291821,0.00014842,2]
[419887068,1775467851129,-151.0,0.00014842,2]
[419887069,1775467851139,-230.868542,0.00014842,2]
[419887070,1775467851148,-3209.548765,0.00014842,2]
[419887071,1775467851158,-439.763631,0.00014842,2]
[419887072,1775467851168,-1184.808907,0.00014842,2]
[419887073,1775467851178,-386.291821,0.00014842,2]
[419887074,1775467851188,-176.400625,0.00014842,2]
[419887075,1775467851198,-942.628696,0.00014842,2]
[419887076,1775467851208,-151.0,0.00014842,2]
[419887077,1775467851218,-230.868542,0.00014842,2]
[419887078,1775467851228,-3209.548765,0.00014842,2]
[419887079,1775467851238,-176.400625,0.00014842,2]
[419887080,1775467851249,-942.628696,0.00014842,2]
[419887081,1775467851259,-151.0,0.00014842,2]
[419887082,1775467851269,-151.0,0.00014842,2]
[419887083,1775467851278,-942.628696,0.00014842,2]
[419887084,1775467851288,-151.0,0.00014842,2]
[419887085,1775467851298,-942.628696,0.00014842,2]
[419887086,1775467851308,-701.642141,0.00014842,2]
[419887087,1775467851318,-701.642141,0.00014842,2]
[419887088,1775467851327,-701.642141,0.00014842,2]
[419887089,1775467851337,-701.642141,0.00014842,2]
[419887090,1775467851360,-421.955775,0.00014842,2]
[419887091,1775467851372,-421.955775,0.00014842,2]
[419887092,1775467851382,-635.680867,0.00014842,2]
[419887093,1775467851392,-421.955775,0.00014842,2]
[419887094,1775467851402,-635.680867,0.00014842,2]
[419887095,1775467851412,-151.0,0.00014842,2]
[419887096,1775467851422,-421.955775,0.00014842,2]
[419887097,1775467851432,-635.680867,0.00014842,2]
[419887098,1775467851443,-635.680867,0.00014842,2]
[419887099,1775467851453,-651.497974,0.00014842,2]
[419887100,1775467851463,-861.901609,0.00014842,2]
[419887101,1775467851473,-651.497974,0.00014842,2]
[419887102,1775467851483,-861.901609,0.00014842,2]
[419887103,1775467851493,-651.497974,0.00014842,2]
[419887104,1775467851503,-170.874576,0.00014842,2]
[419887105,1775467851513,-861.901609,0.00014842,2]
[419887106,1775467851523,-651.497974,0.00014842,2]
[419887107,1775467851533,-2903.51574,0.00014842,2]
[419887108,1775467851543,-170.874576,0.00014842,2]
[419887109,1775467851553,-861.901609,0.00014842,2]
[419887110,1775467851564,-151.0,0.00014842,2]
[419887111,1775467851574,-2903.51574,0.00014842,2]
[419887112,1775467851584,-170.874576,0.00014842,2]
[419887113,1775467851594,-151.0,0.00014842,2]
[419887114,1775467851604,-170.874576,0.00014842,2]
[419887115,1775467851613,-2903.51574,0.00014842,2]
[419887116,1775467851624,-151.0,0.00014842,2]
[419887117,1775467851634,-151.0,0.00014842,2]
[419887118,1775467851644,-151.0,0.00014842,2]
[419887119,1775467851654,-2903.51574,0.00014842,2]
[419887120,1775467851664,-151.0,0.00014842,2]
[419887121,1775467851674,-151.0,0.00014842,2]
[419887122,1775467851684,-1161.704083,0.00014842,2]
[419887123,1775467851694,-151.0,0.00014842,2]
[419887124,1775467851704,-151.0,0.00014842,2]
[419887125,1775467851713,-379.020627,0.00014842,2]
[419887126,1775467851723,-151.0,0.00014842,2]
[419887127,1775467851733,-151.0,0.00014842,2]
[419887128,1775467851743,-1161.704083,0.00014842,2]
[419887129,1775467851753,-894.194628,0.00014842,2]
[419887130,1775467851763,-151.0,0.00014842,2]
[419887131,1775467851773,-379.020627,0.00014842,2]
[419887132,1775467851783,-151.0,0.00014842,2]
[419887133,1775467851792,-275.726462,0.00014842,2]
[419887134,1775467851802,-1161.704083,0.00014842,2]
[419887135,1775467851813,-894.194628,0.00014842,2]
[419887136,1775467851823,-222.045865,0.00014842,2]
[419887137,1775467851832,-379.020627,0.00014842,2]
[419887138,1775467851843,-275.726462,0.00014842,2]
[419887139,1775467851860,-1161.704083,0.00014842,2]
[419887140,1775467851870,-894.194628,0.00014842,2]
[419887141,1775467851881,-379.020627,0.00014842,2]
[419887142,1775467851891,-275.726462,0.00014842,2]
[419887143,1775467851901,-1138.038242,0.00014842,2]
[419887144,1775467851912,-894.194628,0.00014842,2]
[419887145,1775467851922,-275.726462,0.00014842,2]
[419887146,1775467851932,-1138.038242,0.00014842,2]
[419887147,1775467851942,-1138.038242,0.00014842,2]
[419887148,1775467851952,-151.0,0.00014842,2]
[419887149,1775467851962,-237.619189,0.00014842,2]
[419887150,1775467851972,-1138.038242,0.00014842,2]
[419887151,1775467851986,-208.170002,0.00014842,2]
[419887152,1775467851995,-237.619189,0.00014842,2]
[419887153,1775467852006,-208.170002,0.00014842,2]
[419887154,1775467852016,-151.0,0.00014842,2]
[419887155,1775467852026,-237.619189,0.00014842,2]
[419887156,1775467852036,-154.092398,0.00014842,2]
[419887157,1775467852046,-245.18533,0.00014842,2]
[419887158,1775467852056,-208.170002,0.00014842,2]
[419887159,1775467852066,-165.599643,0.00014842,2]
[419887160,1775467852076,-237.619189,0.00014842,2]
[419887161,1775467852087,-245.18533,0.00014842,2]
[419887162,1775467852096,-208.170002,0.00014842,2]
[419887163,1775467852106,-245.18533,0.00014842,2]
[419887164,1775467852116,-428.020659,0.00014842,2]
[419887165,1775467852126,-151.0,0.00014842,2]
[419887166,1775467852137,-245.18533,0.00014842,2]
[419887167,1775467852147,-428.020659,0.00014842,2]
[419887168,1775467852157,-151.0,0.00014842,2]
[419887169,1775467852167,-428.020659,0.00014842,2]
[419887170,1775467852178,-151.0,0.00014842,2]
[419887171,1775467852187,-428.020659,0.00014842,2]
[419887172,1775467852198,-897.861331,0.00014842,2]
[419887173,1775467852208,-897.861331,0.00014842,2]
[419887174,1775467852218,-151.0,0.00014842,2]
[419887175,1775467852229,-897.861331,0.00014842,2]
[419887176,1775467852239,-151.0,0.00014842,2]
[419887177,1775467852249,-839.3425,0.00014842,2]
[419887178,1775467852260,-257.964773,0.00014842,2]
[419887179,1775467852271,-151.0,0.00014842,2]
[419887180,1775467852281,-897.861331,0.00014842,2]
[419887181,1775467852291,-151.0,0.00014842,2]
[419887182,1775467852301,-257.964773,0.00014842,2]
[419887183,1775467852311,-839.3425,0.00014842,2]
[419887184,1775467852322,-839.3425,0.00014842,2]
[419887185,1775467852332,-257.964773,0.00014842,2]
[419887186,1775467852343,-151.0,0.00014842,2]
[419887187,1775467852352,-231.592996,0.00014842,2]
[419887188,1775467852369,-214.22824826,0.00014842,2]
[419887189,1775467854012,-331.79488458,0.00014842,2]
[419887190,1775467854163,-990.799636,0.00014678,2]
[419887191,1775467854174,-293.31936716,0.00014842,2]
[419887192,1775467854184,-973.389471,0.00014842,2]
[419887193,1775467854194,-257.964773,0.00014842,2]
[419887194,1775467854204,-286.061504,0.00014842,2]
[419887195,1775467854214,-231.592996,0.00014842,2]
[419887196,1775467854224,-973.389471,0.00014842,2]
[419887197,1775467854234,-283.986928,0.00014842,2]
[419887198,1775467854244,-231.592996,0.00014842,2]
[419887199,1775467854255,-973.389471,0.00014842,2]
[419887200,1775467854266,-151.0,0.00014842,2]
[419887201,1775467854276,-1849.298231,0.00014842,2]
[419887202,1775467854286,-283.986928,0.00014842,2]
[419887203,1775467854295,-231.592996,0.00014842,2]
[419887204,1775467854306,-973.389471,0.00014842,2]
[419887205,1775467854316,-1849.298231,0.00014842,2]
[419887206,1775467854326,-224.259029,0.00014842,2]
[419887207,1775467854337,-641.371877,0.00014842,2]
[419887208,1775467854348,-151.0,0.00014842,2]
[419887209,1775467854358,-224.259029,0.00014842,2]
[419887210,1775467854368,-641.371877,0.00014842,2]
[419887211,1775467854379,-151.0,0.00014842,2]
[419887212,1775467854389,-310.299956,0.00014842,2]
[419887213,1775467854399,-151.0,0.00014842,2]
[419887214,1775467854409,-224.259029,0.00014842,2]
[419887215,1775467854419,-641.371877,0.00014842,2]
[419887216,1775467854429,-729.37873,0.00014842,2]
[419887217,1775467854439,-310.299956,0.00014842,2]
[419887218,1775467854449,-151.0,0.00014842,2]
[419887219,1775467854459,-151.0,0.00014842,2]
[419887220,1775467854469,-224.259029,0.00014842,2]
[419887221,1775467854479,-641.371877,0.00014842,2]
[419887222,1775467854490,-1849.298231,0.00014842,2]
[419887223,1775467854500,-283.986928,0.00014842,2]
[419887224,1775467854511,-1849.298231,0.00014842,2]
[419887225,1775467854521,-729.37873,0.00014842,2]
[419887226,1775467854532,-156.432067,0.00014842,2]
[419887227,1775467854542,-310.299956,0.00014842,2]
[419887228,1775467854552,-7391.87166724,0.00014842,2]
[419887229,1775467854569,-301.92197159,0.00014842,2]
[419887230,1775467855474,-559.098285,0.00014678,2]
[419887231,1775467855485,-151.0,0.00014678,2]
[419887232,1775467855496,-196.402077,0.00014678,2]
[419887233,1775467855507,-990.799636,0.00014678,2]
[419887234,1775467855518,-990.799636,0.000148,2]
[419887235,1775467855528,-559.098285,0.000148,2]
[419887236,1775467855539,-1368.52054517,0.00014842,2]
[419887237,1775467855549,-198.782364,0.00014842,2]
[419887238,1775467855559,-1558.801213,0.00014842,2]
[419887239,1775467855569,-283.986928,0.00014842,2]
[419887240,1775467855580,-545.09993906,0.00014842,2]
[419887241,1775467855597,-625.99133194,0.00014842,2]
[419887242,1775467855607,-729.37873,0.00014842,2]
[419887243,1775467855618,-156.432067,0.00014842,2]
[419887244,1775467855628,-8069.17481219,0.00014842,2]
[419887245,1775467855650,-993.13937181,0.00014842,2]
[419887246,1775467855660,-1558.801213,0.00014842,2]
[419887247,1775467855671,-310.299956,0.00014842,2]
[419887248,1775467855681,-598.603024,0.00014842,2]
[419887249,1775467855692,-1171.091271,0.00014842,2]
[419887250,1775467855702,-729.37873,0.00014842,2]
[419887251,1775467855713,-3730.308272,0.00014842,2]
[419887252,1775467855723,-156.432067,0.00014842,2]
[419887253,1775467855733,-9062.314184,0.00014842,2]
[419887254,1775467855743,-1558.801213,0.00014842,2]
[419887255,1775467855753,-598.603024,0.00014842,2]
[419887256,1775467855763,-53.25380168,0.00014842,2]
[419887257,1775467855776,-1733.59562206,0.00014842,2]
[419887258,1775467855823,-559.098285,0.00014678,2]
[419887259,1775467855833,-990.799636,0.000148,2]
[419887260,1775467855843,-604.81940626,0.00014842,2]
[419887261,1775467855853,-1171.091271,0.00014842,2]
[419887262,1775467855864,-151.0,0.00014842,2]
[419887263,1775467855874,-156.432067,0.00014842,2]
[419887264,1775467855884,-3730.308272,0.00014842,2]
[419887265,1775467855894,-9062.314184,0.00014842,2]
[419887266,1775467855904,-598.603024,0.00014842,2]
[419887267,1775467855913,-995.998497,0.00014842,2]
[419887268,1775467855923,-1558.801213,0.00014842,2]
[419887269,1775467855934,-2391.66883,0.00014842,2]
[419887270,1775467855944,-1171.091271,0.00014842,2]
[419887271,1775467855954,-151.0,0.00014842,2]
[419887272,1775467855964,-3730.308272,0.00014842,2]
[419887273,1775467855974,-598.603024,0.00014842,2]
[419887274,1775467855984,-995.998497,0.00014842,2]
[419887275,1775467855995,-2391.66883,0.00014842,2]
[419887276,1775467856005,-3730.308272,0.00014842,2]
[419887277,1775467856016,-151.0,0.00014842,2]
[419887278,1775467856026,-151.0,0.00014842,2]
[419887279,1775467856036,-995.998497,0.00014842,2]
[419887280,1775467856046,-2391.66883,0.00014842,2]
[419887281,1775467856057,-151.0,0.00014842,2]
[419887282,1775467856067,-520.296237,0.00014842,2]
[419887283,1775467856078,-151.0,0.00014842,2]
[419887284,1775467856088,-995.998497,0.00014842,2]
[419887285,1775467856098,-151.0,0.00014842,2]
[419887286,1775467856109,-520.296237,0.00014842,2]
[419887287,1775467856118,-167.071898,0.00014842,2]
[419887288,1775467856129,-151.0,0.00014842,2]
[419887289,1775467856139,-151.0,0.00014842,2]
[419887290,1775467856149,-151.0,0.00014842,2]
[419887291,1775467856159,-151.0,0.00014842,2]
[419887292,1775467856170,-151.0,0.00014842,2]
[419887293,1775467856180,-520.296237,0.00014842,2]
[419887294,1775467856191,-167.071898,0.00014842,2]
[419887295,1775467856201,-151.0,0.00014842,2]
[419887296,1775467856211,-151.0,0.00014842,2]
[419887297,1775467856221,-151.0,0.00014842,2]
[419887298,1775467856231,-151.0,0.00014842,2]
[419887299,1775467856241,-520.296237,0.00014842,2]
[419887300,1775467856251,-167.071898,0.00014842,2]
[419887301,1775467856262,-151.0,0.00014842,2]
[419887302,1775467856271,-151.0,0.00014842,2]
[419887303,1775467856281,-151.0,0.00014842,2]
[419887304,1775467856291,-151.0,0.00014842,2]
[419887305,1775467856302,-167.071898,0.00014842,2]
[419887306,1775467856312,-169.725665,0.00014842,2]
[419887307,1775467856322,-169.725665,0.00014842,2]
[419887308,1775467856332,-1508.537461,0.00014842,2]
[419887309,1775467856342,-169.725665,0.00014842,2]
[419887310,1775467856352,-618.690184,0.00014842,2]
[419887311,1775467856362,-151.0,0.00014842,2]
[419887312,1775467856372,-1508.537461,0.00014842,2]
[419887313,1775467856382,-169.725665,0.00014842,2]
[419887314,1775467856392,-151.0,0.00014842,2]
[419887315,1775467856402,-618.690184,0.00014842,2]
[419887316,1775467856413,-1508.537461,0.00014842,2]
[419887317,1775467856422,-700.102793,0.00014842,2]
[419887318,1775467856432,-151.0,0.00014842,2]
[419887319,1775467856442,-618.690184,0.00014842,2]
[419887320,1775467856452,-1508.537461,0.00014842,2]
[419887321,1775467856462,-700.102793,0.00014842,2]
[419887322,1775467856472,-618.690184,0.00014842,2]
[419887323,1775467856482,-700.102793,0.00014842,2]
[419887324,1775467856493,-160.344589,0.00014842,2]
[419887325,1775467856503,-700.102793,0.00014842,2]
[419887326,1775467856513,-160.344589,0.00014842,2]
[419887327,1775467856523,-172.176176,0.00014842,2]
[419887328,1775467856533,-151.0,0.00014842,2]
[419887329,1775467856543,-160.344589,0.00014842,2]
[419887330,1775467856552,-172.176176,0.00014842,2]
[419887331,1775467856562,-151.0,0.00014842,2]
[419887332,1775467856572,-945.278348,0.00014842,2]
[419887333,1775467856582,-151.0,0.00014842,2]
[419887334,1775467856593,-1375.906194,0.00014842,2]
[419887335,1775467856603,-160.344589,0.00014842,2]
[419887336,1775467856613,-151.0,0.00014842,2]
[419887337,1775467856623,-172.176176,0.00014842,2]
[419887338,1775467856633,-1355.1514,0.00014842,2]
[419887339,1775467856643,-151.0,0.00014842,2]
[419887340,1775467856653,-945.278348,0.00014842,2]
[419887341,1775467856663,-1375.906194,0.00014842,2]
[419887342,1775467856672,-151.0,0.00014842,2]
[419887343,1775467856682,-172.176176,0.00014842,2]
[419887344,1775467856693,-151.0,0.00014842,2]
[419887345,1775467856703,-945.278348,0.00014842,2]
[419887346,1775467856713,-151.0,0.00014842,2]
[419887347,1775467856722,-1355.1514,0.00014842,2]
[419887348,1775467856732,-151.0,0.00014842,2]
[419887349,1775467856742,-1375.906194,0.00014842,2]
[419887350,1775467856752,-573.010156,0.00014842,2]
[419887351,1775467856762,-151.0,0.00014842,2]
[419887352,1775467856772,-945.278348,0.00014842,2]
[419887353,1775467856781,-1355.1514,0.00014842,2]
[419887354,1775467856792,-156.918191,0.00014842,2]
[419887355,1775467856802,-1375.906194,0.00014842,2]
[419887356,1775467856811,-573.010156,0.00014842,2]
[419887357,1775467856821,-151.0,0.00014842,2]
[419887358,1775467856831,-151.0,0.00014842,2]
[419887359,1775467856841,-1355.1514,0.00014842,2]
[419887360,1775467856851,-156.918191,0.00014842,2]
[419887361,1775467856862,-573.010156,0.00014842,2]
[419887362,1775467856871,-320.0,0.00014842,2]
[419887363,1775467856881,-151.0,0.00014842,2]
[419887364,1775467856892,-151.0,0.00014842,2]
[419887365,1775467856902,-156.918191,0.00014842,2]
[419887366,1775467856912,-1013.485065,0.00014842,2]
[419887367,1775467856922,-1830.99849,0.00014842,2]
[419887368,1775467856932,-573.010156,0.00014842,2]
[419887369,1775467856942,-320.0,0.00014842,2]
[419887370,1775467856952,-387.326228,0.00014842,2]
[419887371,1775467856962,-151.0,0.00014842,2]
[419887372,1775467856971,-820.037319,0.00014842,2]
[419887373,1775467856981,-156.918191,0.00014842,2]
[419887374,1775467856991,-1013.485065,0.00014842,2]
[419887375,1775467857001,-1830.99849,0.00014842,2]
[419887376,1775467857010,-320.0,0.00014842,2]
[419887377,1775467857020,-387.326228,0.00014842,2]
[419887378,1775467857030,-151.0,0.00014842,2]
[419887379,1775467857040,-820.037319,0.00014842,2]
[419887380,1775467857050,-1013.485065,0.00014842,2]
[419887381,1775467857060,-1830.99849,0.00014842,2]
[419887382,1775467857069,-320.0,0.00014842,2]
[419887383,1775467857079,-387.326228,0.00014842,2]
[419887384,1775467857088,-820.037319,0.00014842,2]
[419887385,1775467857098,-1013.485065,0.00014842,2]
[419887386,1775467857107,-1830.99849,0.00014842,2]
[419887387,1775467857117,-1316.310871,0.00014842,2]
[419887388,1775467857126,-387.326228,0.00014842,2]
[419887389,1775467857136,-151.0,0.00014842,2]
[419887390,1775467857146,-820.037319,0.00014842,2]
[419887391,1775467857155,-1316.310871,0.00014842,2]
[419887392,1775467857165,-151.0,0.00014842,2]
[419887393,1775467857175,-151.0,0.00014842,2]
[419887394,1775467857185,-1316.310871,0.00014842,2]
[419887395,1775467857195,-185.755922,0.00014842,2]
[419887396,1775467857205,-151.0,0.00014842,2]
[419887397,1775467857215,-151.0,0.00014842,2]
[419887398,1775467857225,-1316.310871,0.00014842,2]
[419887399,1775467857235,-185.755922,0.00014842,2]
[419887400,1775467857245,-151.0,0.00014842,2]
[419887401,1775467857255,-185.755922,0.00014842,2]
[419887402,1775467857265,-178.270785,0.00014842,2]
[419887403,1775467857275,-185.755922,0.00014842,2]
[419887404,1775467857285,-742.399606,0.00014842,2]
[419887405,1775467857295,-151.0,0.00014842,2]
[419887406,1775467857305,-742.399606,0.00014842,2]
[419887407,1775467857314,-158.344007,0.00014842,2]
[419887408,1775467857324,-742.399606,0.00014842,2]
[419887409,1775467857334,-151.0,0.00014842,2]
[419887410,1775467857344,-742.399606,0.00014842,2]
[419887411,1775467857353,-396.689273,0.00014842,2]
[419887412,1775467857363,-396.689273,0.00014842,2]
[419887413,1775467857373,-396.689273,0.00014842,2]
[419887414,1775467857383,-2106.276503,0.00014842,2]
[419887415,1775467857393,-396.689273,0.00014842,2]
[419887416,1775467857403,-157.177992,0.00014842,2]
[419887417,1775467857413,-2106.276503,0.00014842,2]
[419887418,1775467857424,-418.44005,0.00014842,2]
[419887419,1775467857434,-2106.276503,0.00014842,2]
[419887420,1775467857444,-418.44005,0.00014842,2]
[419887421,1775467857454,-2106.276503,0.00014842,2]
[419887422,1775467857465,-3517.839074,0.00014842,2]
[419887423,1775467857475,-400.55041,0.00014842,2]
[419887424,1775467857484,-166.049568,0.00014842,2]
[419887425,1775467857495,-418.44005,0.00014842,2]
[419887426,1775467857505,-151.0,0.00014842,2]
[419887427,1775467857515,-3517.839074,0.00014842,2]
[419887428,1775467857525,-400.55041,0.00014842,2]
[419887429,1775467857684,-418.44005,0.00014842,2]
[419887430,1775467857696,-166.049568,0.00014842,2]
[419887431,1775467857706,-151.0,0.00014842,2]
[419887432,1775467857715,-151.0,0.00014842,2]
[419887433,1775467857725,-3517.839074,0.00014842,2]
[419887434,1775467857735,-166.049568,0.00014842,2]
[419887435,1775467857743,-1330.014083,0.00014842,2]
[419887436,1775467857754,-1388.876929,0.00014842,2]
[419887437,1775467857763,-166.049568,0.00014842,2]
[419887438,1775467857773,-3517.839074,0.00014842,2]
[419887439,1775467857783,-151.0,0.00014842,2]
[419887440,1775467857793,-1330.014083,0.00014842,2]
[419887441,1775467857805,-1388.876929,0.00014842,2]
[419887442,1775467857815,-151.0,0.00014842,2]
[419887443,1775467857825,-1330.014083,0.00014842,2]
[419887444,1775467857835,-1388.876929,0.00014842,2]
[419887445,1775467857844,-400.55041,0.00014842,2]
[419887446,1775467857854,-151.0,0.00014842,2]
[419887447,1775467857864,-151.0,0.00014842,2]
[419887448,1775467857873,-1330.014083,0.00014842,2]
[419887449,1775467857883,-1388.876929,0.00014842,2]
[419887450,1775467857892,-559.098285,0.00014842,2]
[419887451,1775467857902,-400.55041,0.00014842,2]
[419887452,1775467857912,-151.0,0.00014842,2]
[419887453,1775467857921,-559.098285,0.00014842,2]
[419887454,1775467857931,-151.0,0.00014842,2]
[419887455,1775467857941,-990.799636,0.00014842,2]
[419887456,1775467857950,-559.098285,0.00014842,2]
[419887457,1775467857959,-151.0,0.00014842,2]
[419887458,1775467857969,-152.0,0.00014848,4]
[419887459,1775467857979,-909.01,0.00014853,2]
[419887460,1775467857988,-500.0,0.00014863,2]
[419887461,1775467857997,-151.0,0.00014863,2]
[419887462,1775467858011,-1000.0,0.00014864,2]
[419887463,1775467858021,-1929.77869713,0.00014878,2]
[419887464,1775467858031,-268.0,0.000149,2]
[419887465,1775467858042,-4600.0,0.000149,5]
[419887466,1775467858052,-1500.0,0.000149,5]
[419887467,1775467858062,-268.0,0.00014907,2]
[419887468,1775467858072,-200.0,0.00014913,2]
[419887469,1775467858081,-500.0,0.00014918,2]
[419887470,1775467858091,-151.0,0.00014918,2]
[419887471,1775467858101,-365.5893756,0.00014973,2]
[419887472,1775467858111,-500.0,0.00014973,2]
[419887473,1775467858121,-151.0,0.00014973,2]
[419887474,1775467858131,-300.0,0.00015,2]
[419887475,1775467858141,-268.0,0.00015015,2]
[419887476,1775467858151,-152.0,0.00015026,5]
[419887477,1775467858162,-500.0,0.00015028,2]
[419887478,1775467858172,-151.0,0.00015028,2]
[419887479,1775467858182,-2811.0,0.0001504,2]
[419887480,1775467858192,-2811.0,0.0001504,2]
[419887481,1775467858202,-1573.0,0.0001504,2]
[419887482,1775467858212,-162.0,0.0001504,2]
[419887483,1775467858222,-2811.0,0.0001504,2]
[419887484,1775467858233,-1573.0,0.0001504,2]
[419887485,1775467858243,-162.0,0.0001504,2]
[419887486,1775467858255,-500.0,0.00015058,2]
[419887487,1775467858265,-200.0,0.00015062,2]
[419887488,1775467858275,-553.0,0.00015067,2]
[419887489,1775467858284,-706.18,0.00015068,2]
[419887490,1775467858294,-900.0,0.00015068,2]
[419887491,1775467858305,-151.0,0.00015068,2]
[419887492,1775467858316,-151.0,0.00015068,2]
[419887493,1775467858325,-151.0,0.00015068,2]
[419887494,1775467858335,-151.0,0.00015068,2]
[419887495,1775467858345,-151.0,0.00015068,2]
[419887496,1775467858360,-151.0,0.00015068,2]
[419887497,1775467858371,-151.0,0.00015068,2]
[419887498,1775467858380,-151.0,0.00015068,2]
[419887499,1775467858390,-268.090496,0.00015068,2]
[419887500,1775467858401,-500.0,0.00015083,2]
[419887501,1775467858413,-151.0,0.00015083,2]
[419887502,1775467858424,-151.0,0.00015086,2]
[419887503,1775467858435,-14942.40398534,0.00015089,2]
[419887504,1775467858445,-500.0,0.00015089,2]
[419887505,1775467858456,-500.0,0.00015089,2]
[419887506,1775467858466,-500.0,0.00015089,2]
[419887507,1775467858475,-500.0,0.00015089,2]
[419887508,1775467858488,-500.0,0.00015089,2]
[419887509,1775467858498,-500.0,0.00015089,2]
[419887510,1775467858510,-500.0,0.00015089,2]
[419887511,1775467858520,-500.0,0.00015089,2]
[419887512,1775467858531,-553.0,0.00015089,2]
[419887513,1775467858542,-150.0,0.00015089,2]
[419887514,1775467858551,-150.0,0.00015089,2]
[419887515,1775467858561,-5196.85858256,0.00015105,2]
[419887516,1775467858572,-5000.0,0.00015105,2]
[419887517,1775467858582,-5000.0,0.00015105,2]
[419887518,1775467858592,-5000.0,0.00015105,2]
[419887519,1775467858603,-5000.0,0.00015105,2]
[419887520,1775467858613,-3900.0,0.00015123,2]
[419887521,1775467858624,-553.0,0.00015134,2]
[419887522,1775467858634,-500.0,0.00015138,2]
[419887523,1775467858644,-151.0,0.00015138,2]
[419887524,1775467858654,-350.0,0.00015139,2]
[419887525,1775467858665,-2000.0,0.0001514,2]
[419887526,1775467858674,-2040.74153116,0.00015158,2]
[419887527,1775467858684,-553.0,0.00015175,2]
[419887528,1775467858695,-758.662691,0.00015178,2]
[419887529,1775467858705,-436.542192,0.00015178,2]
[419887530,1775467858715,-758.662691,0.00015178,2]
[419887531,1775467858725,-436.542192,0.00015178,2]
[419887532,1775467858734,-758.662691,0.00015178,2]
[419887533,1775467858744,-159.015326,0.00015178,2]
[419887534,1775467858755,-436.542192,0.00015178,2]
[419887535,1775467858765,-758.662691,0.00015178,2]
[419887536,1775467858776,-159.015326,0.00015178,2]
[419887537,1775467858785,-436.542192,0.00015178,2]
[419887538,1775467858796,-1134.470061,0.00015178,2]
[419887539,1775467858806,-159.015326,0.00015178,2]
[419887540,1775467858817,-1134.470061,0.00015178,2]
[419887541,1775467858827,-151.0,0.00015178,2]
[419887542,1775467858837,-159.015326,0.00015178,2]
[419887543,1775467858847,-1134.470061,0.00015178,2]
[419887544,1775467858858,-151.0,0.00015178,2]
[419887545,1775467858867,-1134.470061,0.00015178,2]